[Event "WYCC 2018 O16"]
[Site "Halkidiki"]
[Date "2018.10.24"]
[Round "6"]
[White "Loukopoulos, Panagiotis-Athanasi"]
[Black "Stevanic, David"]
[Result "0-1"]
[ECO "C50"]
[WhiteElo "1988"]
[BlackElo "2281"]
[Annotator "NA"]
[PlyCount "56"]
[EventDate "2018.10.20"]
[EventType "swiss"]
[EventCountry "GRE"]
[SourceTitle "playchess.com"]
[Source "ChessBase"]
[SourceQuality "1"]
[TimeControl "40/5400+30:1800+30"]

1. e4 {[%emt 0:00:00]} e5 {[%emt 0:00:00]} 2. Nf3 {[%emt 0:00:00]} Nc6 {[%emt 0:00:00]} 3. Bc4 {[%emt 0:00:00]} Bc5 {[%emt 0:00:00]} 4. O-O {[%emt 0:00:00]} Nf6 {[%emt 0:00:01]} 5. d3 {[%emt 0:00:02]} a6 {[%emt 0:02:30]} 6. c3 {[%emt 0:00:50]} Ba7 {[%emt 0:00:58]} 7. a4 {[%emt 0:01:00]} d6 {[%emt 0:02:28]} 8. Nbd2 {[%emt 0:04:00]} O-O {[%emt 0:00:14]} 9. h3 {[%emt 0:00:20]} Ne7 {[%emt 0:02:58] LiveBook: 36 Games} 10. Re1 {[%emt 0:01:37]} Ng6 {[%emt 0:04:03] C54: Giuoco Piano: 4 c3 Nf6, main lines with 5 d4 and 5 d3} 11. Nf1 {[%emt 0:11:44]} c6 {[%emt 0:00:06]} (11... Be6 12. Bxe6 fxe6 13. Ng3 h6 14. d4 Nd7 15. Be3 Qe7 16. a5 Kh7 17. Nd2 Rf7 18. Nc4 {½-½ (57) Caruana,F (2822)-Nakamura,H (2769) Stavanger 2018}) 12. a5 {[%emt 0:10:25]} d5 $146 {[%emt 0:03:51]} ({Predecessor:} 12... Re8 13. Ng3 d5 14. Bb3 Be6 15. Ng5 Bd7 16. Qc2 Qc7 17. Bd2 h6 18. Nf3 Rad8 19. d4 dxe4 20. Nxe4 Nxe4 21. Qxe4 Be6 22. Bxe6 {½-½ (22) Lopez,A (1670)-Hynes,T (1817) Chessfriend.com 2003}) 13. exd5 {[%emt 0:07:27]} cxd5 {[%emt 0:00:09]} 14. Bb3 {[%emt 0:00:02]} Re8 {[%emt 0:02:35]} 15. Bg5 {[%emt 0:01:38]} h6 {[%emt 0:07:24]} 16. Bxf6 {[%emt 0:02:51]} Qxf6 {[%emt 0:00:06]} 17. d4 {[%emt 0:14:42]} e4 {[%emt 0:05:05]} 18. N3h2 $4 {[%emt 0:12:41]} (18. Bxd5 $18 Bxh3 19. Bxe4 (19. gxh3 exf3 20. Qxf3 Nf4 $18) (19. Rxe4 Rxe4 20. Bxe4 Bf5 $18)) 18... Nf4 {[%emt 0:02:46]} 19. Re3 {[%emt 0:02:36]} h5 {[%emt 0:06:56]} 20. Ng3 {[%emt 0:02:22]} g6 {[%emt 0:07:14]} 21. Ne2 {[%emt 0:08:29]} Nd3 {[%emt 0:03:16]} 22. Qxd3 {[%emt 0:07:33]} exd3 {[%emt 0:00:06]} 23. Rxe8+ {[%emt 0:00:03]} Kg7 $19 {[%emt 0:01:08]} 24. Nc1 {[%emt 0:02:46]} Qc6 {[%emt 0:06:48]} 25. Ba4 {[%emt 0:00:09]} Qxa4 {[%emt 0:01:17]} 26. Rxa4 {[%emt 0:00:28]} d2 {[%emt 0:00:04]} 27. Nd3 {[%emt 0:01:30]} d1=Q+ {[%emt 0:00:09]} 28. Ne1 {[%emt 0:00:05]} Qxa4 {[%emt 0:00:04]} 0-1

[Event "WYCC 2018 O16"]
[Site "Halkidiki"]
[Date "2018.10.24"]
[Round "6"]
[White "Wijesinghe, N L C Dojitha"]
[Black "Golikov, Daniil"]
[Result "0-1"]
[ECO "C00"]
[WhiteElo "1688"]
[BlackElo "2319"]
[Annotator "NA"]
[PlyCount "48"]
[EventDate "2018.10.20"]
[EventType "swiss"]
[EventCountry "GRE"]
[SourceTitle "playchess.com"]
[Source "ChessBase"]
[SourceQuality "1"]
[TimeControl "40/5400+30:1800+30"]

1. e4 {[%emt 0:00:00]} e6 {[%emt 0:00:00]} 2. c4 {[%emt 0:01:12]} d5 {[%emt 0:02:25]} 3. exd5 exd5 {[%emt 0:00:03]} 4. cxd5 {[%emt 0:01:07]} Nf6 {[%emt 0:00:05]} 5. Bb5+ {[%emt 0:00:58]} Bd7 {[%emt 0:05:43] C00: French: Unusual White 2nd moves} (5... Nbd7 6. Nc3 Be7 7. Nf3 O-O 8. d4 Nb6 9. h3 Nbxd5 10. O-O Bf5 11. Re1 Bb4 12. Bd2 c6 13. Bc4 Bxc3 14. bxc3 Ne4 15. Rc1 Qf6 {1-0 (36) Vachier Lagrave,M (2789)-Caruana,F (2804) Paris 2016}) 6. Bc4 {[%emt 0:00:39]} Qe7+ {[%emt 0:11:43]} 7. Qe2 {[%emt 0:18:55]} Bg4 {[%emt 0:01:18]} 8. f3 {[%emt 0:03:19]} Bf5 {[%emt 0:00:36]} 9. Nc3 {[%emt 0:01:28]} Nbd7 $146 {[%emt 0:02:32]} ({Predecessor:} 9... a6 10. d4 Nbd7 11. Bf4 Rc8 12. Be5 b5 13. Bb3 {1-0 (40) Fernandez Andrade,A (1861)-Pazos Porta,A (2189) Ourense 2008}) 10. Nb5 (10. h4 $11) 10... Ne5 {[%emt 0:01:30]} 11. Nxc7+ {[%emt 0:17:40]} Qxc7 {[%emt 0:00:02]} 12. f4 {[%emt 0:00:23]} Qxc4 {[%emt 0:09:04]} 13. Qxe5+ {[%emt 0:00:07]} Kd8 {[%emt 0:00:27]} 14. Qxf5 {[%emt 0:04:44]} Bd6 {[%emt 0:25:04]} 15. Ne2 Re8 {[%emt 0:01:28]} 16. d3 {[%emt 0:13:48]} Qc2 {[%emt 0:00:04]} 17. Bd2 {[%emt 0:00:23]} Bb4 {[%emt 0:00:04]} 18. Rd1 {[%emt 0:00:45]} Rc8 {[%emt 0:00:01]} 19. O-O {[%emt 0:18:21]} Rxe2 {[%emt 0:06:24]} 20. Rc1 {[%emt 0:03:58]} Bc5+ {[%emt 0:00:04]} 21. Kh1 {[%emt 0:01:20]} Qxd2 {[%emt 0:00:05]} 22. Rg1 {[%emt 0:00:42]} Rc7 {[%emt 0:01:18]} 23. d6 $19 {[%emt 0:00:43]} Bxd6 {[%emt 0:00:07]} 24. Rxc7 {[%emt 0:02:26]} Bxc7 {[%emt 0:00:05]} 0-1

[Event "WYCC 2018 O16"]
[Site "Halkidiki"]
[Date "2018.10.26"]
[Round "7"]
[White "Engel, Luis"]
[Black "Zhalmakhanov, Ramazan"]
[Result "1/2-1/2"]
[ECO "B33"]
[WhiteElo "2441"]
[BlackElo "2316"]
[Annotator "NA"]
[PlyCount "52"]
[EventDate "2018.10.20"]
[EventType "swiss"]
[EventCountry "GRE"]
[SourceTitle "playchess.com"]
[Source "ChessBase"]
[SourceQuality "1"]
[TimeControl "40/5400+30:1800+30"]

1. e4 {[%emt 0:00:00]} c5 {[%emt 0:00:07]} 2. Nf3 {[%emt 0:00:00]} Nc6 {[%emt 0:00:28]} 3. d4 {[%emt 0:01:19]} cxd4 {[%emt 0:00:52]} 4. Nxd4 {[%emt 0:00:05]} Nf6 {[%emt 0:01:54]} 5. Nc3 {[%emt 0:00:06]} e5 {[%emt 0:00:11]} 6. Ndb5 {[%emt 0:00:04]} d6 {[%emt 0:00:07]} 7. Bg5 {[%emt 0:00:05]} a6 {[%emt 0:00:09]} 8. Na3 {[%emt 0:00:05]} b5 {[%emt 0:00:15]} 9. Nd5 {[%emt 0:00:05]} Be7 {[%emt 0:00:11]} 10. Bxf6 {[%emt 0:00:05]} Bxf6 {[%emt 0:00:05]} 11. c3 {[%emt 0:00:06]} Bg5 {[%emt 0:02:57]} 12. Nc2 {[%emt 0:00:15]} O-O {[%emt 0:00:11]} 13. a4 {[%emt 0:02:12]} bxa4 {[%emt 0:01:05]} 14. Rxa4 {[%emt 0:00:05]} a5 {[%emt 0:00:33]} 15. Bc4 {[%emt 0:00:23]} Rb8 {[%emt 0:00:10] LiveBook: 1063 Games} 16. b3 {[%emt 0:00:08]} Kh8 {[%emt 0:00:22]} 17. Ra2 {[%emt 0:03:37]} f5 {[%emt 0:06:57]} 18. exf5 {[%emt 0:01:38]} Bxf5 {[%emt 0:00:09]} 19. Nce3 {[%emt 0:05:30]} Bg6 {[%emt 0:00:33]} 20. O-O {[%emt 0:04:25]} e4 {[%emt 0:03:46]} 21. Be2 {[%emt 0:03:58]} Bf7 {[%emt 0:07:57]} 22. Nc4 {[%emt 0:09:34]} Bg8 {[%emt 0:01:19]} 23. Ra3 {[%emt 0:07:07]} Rb5 {[%emt 0:16:19]} 24. Nce3 {[%emt 0:05:12]} Rb8 {[%emt 0:00:40]} 25. Nc4 {[%emt 0:03:10]} Rb5 {[%emt 0:02:20]} 26. Nce3 {[%emt 0:00:22]} Rb8 {[%emt 0:00:05]} 1/2-1/2

[Event "WYCC 2018 O16"]
[Site "Halkidiki"]
[Date "2018.10.26"]
[Round "7"]
[White "Vlachos, Anatole"]
[Black "Ongut, Tamas Gunes"]
[Result "1-0"]
[ECO "A45"]
[WhiteElo "2435"]
[BlackElo "2185"]
[Annotator "NA RC"]
[PlyCount "95"]
[EventDate "2018.10.20"]
[EventType "swiss"]
[EventCountry "GRE"]
[SourceTitle "playchess.com"]
[Source "ChessBase"]
[SourceQuality "1"]
[TimeControl "40/5400+30:1800+30"]

1. d4 {[%emt 0:00:00]} Nf6 {[%emt 0:00:00]} 2. Bg5 {[%emt 0:00:00]} d5 {[%emt 0:00:05]} 3. e3 {[%emt 0:00:00]} c5 {[%emt 0:00:00]} 4. Bxf6 {[%emt 0:00:00]} gxf6 {[%emt 0:00:00]} 5. dxc5 {[%emt 0:00:00]} e6 {[%emt 0:01:08]} 6. c4 {[%emt 0:00:00]} dxc4 {[%emt 0:01:20]} 7. Qxd8+ {[%emt 0:00:09]} Kxd8 {[%emt 0:00:08]} 8. Bxc4 {[%emt 0:02:32]} Bxc5 {[%emt 0:00:10]} 9. Nf3 {[%emt 0:00:46]} Ke7 {[%emt 0:05:44] LiveBook: 5 Games} 10. O-O {[%emt 0:01:24]} b6 {[%emt 0:04:29]} 11. Nbd2 {[%emt 0:00:01]} Bb7 {[%emt 0:00:11]} 12. Rac1 {[%emt 0:00:00]} Nd7 {[%emt 0:02:00]} 13. a3 $11 {[%emt 0:01:11]} Rac8 {[%emt 0:01:59]} 14. b4 {[%emt 0:00:05]} Bd6 {[%emt 0:00:04]} 15. Nd4 {[%emt 0:00:00]} f5 {[%emt 0:07:24]} 16. Bb5 {[%emt 0:03:12]} Rxc1 {[%emt 0:07:13]} 17. Rxc1 {[%emt 0:00:05]} Nb8 {[%emt 0:00:11]} 18. Be2 {[%emt 0:09:18]} a6 {[%emt 0:10:00]} 19. Nc4 {[%emt 0:01:08]} Rc8 {[%emt 0:00:20]} 20. Rd1 {[%emt 0:00:11]} Bc7 {[%emt 0:00:09]} 21. a4 {[%emt 0:00:25]} Rd8 {[%emt 0:02:19]} 22. b5 {[%emt 0:14:30]} axb5 {[%emt 0:01:16]} 23. axb5 {[%emt 0:00:12]} Bd5 {[%emt 0:04:14]} 24. Na3 {[%emt 0:01:15]} Bd6 {[%emt 0:04:28]} 25. Nac2 {[%emt 0:00:12]} Be4 {[%emt 0:01:30]} 26. Bd3 {[%emt 0:00:44]} Bxd3 {[%emt 0:09:19]} 27. Rxd3 {[%emt 0:00:01]} Rc8 {[%emt 0:00:21]} 28. f4 {[%emt 0:03:19]} Bc5 {[%emt 0:06:04]} 29. h3 {[%emt 0:00:18]} h6 {[%emt 0:02:25]} 30. Rd1 {[%emt 0:01:43]} Rd8 {[%emt 0:08:40]} 31. Ra1 {[%emt 0:01:46]} Kf6 {[%emt 0:02:28]} 32. Kf1 {[%emt 0:01:25]} Rg8 {[%emt 0:06:35]} 33. Ra7 {[%emt 0:02:20]} Rd8 {[%emt 0:01:10]} 34. Ke2 {[%emt 0:00:33]} Rd7 {[%emt 0:00:25]} 35. Ra1 {[%emt 0:01:16]} Rd8 {[%emt 0:01:04]} 36. Kf1 {[%emt 0:00:09]} Rd7 {[%emt 0:01:15]} 37. Ke2 {[%emt 0:00:15]} Rd8 {[%emt 0:00:05]} 38. Nb3 {[%emt 0:00:18]} Bd6 {[%emt 0:03:17]} 39. Ncd4 {[%emt 0:00:00]} Rc8 {[%emt 0:00:00]} 40. Nd2 {[%emt 0:00:00]} Bc5 {[%emt 0:00:00]} 41. N2f3 {[%emt 0:05:04]} Bxd4 {[%emt 0:06:16]} 42. Nxd4 {[%emt 0:00:29]} Nd7 {[%emt 0:02:35]} 43. Ra7 {[%emt 0:00:53]} Ke7 {[%emt 0:01:49]} 44. Nc6+ {[%emt 0:01:29]} Kd6 {[%emt 0:00:08]} 45. Kd3 {[%emt 0:02:58]} f6 {[%emt 0:02:06]} 46. Ra2 {[%emt 0:04:14]} e5 {[%emt 0:07:04]} 47. Kc4 {[%emt 0:07:44]} Nb8 {[%emt 0:09:26]} 48. Ra8 {[%emt 0:02:01] Kd5+} 1-0

[Event "WYCC 2018 O16"]
[Site "Halkidiki"]
[Date "2018.10.26"]
[Round "7"]
[White "Zarubitski, Viachaslau"]
[Black "Milosevic, Milos"]
[Result "1/2-1/2"]
[ECO "B92"]
[WhiteElo "2417"]
[BlackElo "2306"]
[Annotator "NA"]
[PlyCount "64"]
[EventDate "2018.10.20"]
[EventType "swiss"]
[EventCountry "GRE"]
[SourceTitle "playchess.com"]
[Source "ChessBase"]
[SourceQuality "1"]
[TimeControl "40/5400+30:1800+30"]

1. e4 {[%emt 0:00:00]} d6 {[%emt 0:00:00]} 2. Nf3 {[%emt 0:00:00]} c5 {[%emt 0:00:00]} 3. d4 {[%emt 0:00:00]} cxd4 {[%emt 0:00:00]} 4. Nxd4 {[%emt 0:00:00]} Nf6 {[%emt 0:00:00]} 5. Nc3 {[%emt 0:00:00]} a6 {[%emt 0:00:00]} 6. Be2 {[%emt 0:00:01]} e5 {[%emt 0:00:00]} 7. Nb3 {[%emt 0:00:06]} Be7 {[%emt 0:00:00]} 8. Be3 {[%emt 0:00:09]} Be6 {[%emt 0:00:07]} 9. Nd5 {[%emt 0:00:04]} Nbd7 {[%emt 0:00:06]} 10. Qd3 {[%emt 0:00:05]} O-O {[%emt 0:00:09] B92: Sicilian Najdorf: 6 Be2} 11. a4 {[%emt 0:00:29] LiveBook: 7 Games} (11. O-O Bxd5 12. exd5 Rc8 13. c4 Ne8 14. f3 g6 15. Kh1 Ng7 16. Bg1 Bg5 17. Rad1 h5 18. Nd2 f5 19. b4 h4 20. c5 dxc5 21. d6 cxb4 {1-0 (45) Karjakin,S (2782)-Grischuk,A (2766) Paris 2018}) 11... Bxd5 {[%emt 0:00:18]} 12. exd5 {[%emt 0:00:04]} Rc8 {[%emt 0:00:18]} 13. c4 {[%emt 0:00:17]} Nc5 {[%emt 0:00:42]} (13... e4 $11 14. Qd4 Nc5 15. Nxc5 dxc5) 14. Nxc5 {[%emt 0:03:11]} dxc5 {[%emt 0:00:06]} 15. a5 {[%emt 0:00:18]} e4 {[%emt 0:00:46]} 16. Qd2 $146 {[%emt 0:03:12]} ({Predecessor:} 16. Qc2 Bd6 17. O-O Qc7 18. g3 {0-1 (25) Castrillon Gomez,M (2210)-Vazquez,G (2443) Medellin 2017}) 16... Bd6 {[%emt 0:01:36]} 17. O-O {[%emt 0:05:09]} Nd7 $11 {[%emt 0:03:14]} 18. f4 {[%emt 0:10:48]} exf3 {[%emt 0:13:58]} 19. Rxf3 {[%emt 0:00:15]} Ne5 {[%emt 0:00:57]} 20. Rf2 {[%emt 0:05:10]} f5 {[%emt 0:12:59]} 21. Raf1 {[%emt 0:14:09]} g6 {[%emt 0:01:21]} 22. Bg5 {[%emt 0:09:49]} Qc7 {[%emt 0:01:14]} 23. Bh6 {[%emt 0:01:58]} Rfe8 {[%emt 0:00:59]} 24. Qc3 {[%emt 0:09:36]} Qe7 {[%emt 0:04:46]} 25. g4 {[%emt 0:11:02]} Qh4 {[%emt 0:03:35]} 26. Bf4 {[%emt 0:01:50]} fxg4 {[%emt 0:04:44]} 27. Bg3 {[%emt 0:02:59]} Qg5 {[%emt 0:06:53]} 28. Rf6 {[%emt 0:02:02]} Rcd8 {[%emt 0:13:42]} 29. Kh1 {[%emt 0:01:43]} Bb8 {[%emt 0:03:56]} 30. R6f2 {[%emt 0:06:13]} Bd6 {[%emt 0:17:00]} 31. Rf6 {[%emt 0:04:57]} Bb8 {[%emt 0:00:18]} 32. R6f2 {[%emt 0:02:02]} Bd6 {[%emt 0:00:23]} 1/2-1/2

[Event "WYCC 2018 O16"]
[Site "Halkidiki"]
[Date "2018.10.26"]
[Round "7"]
[White "Vestby-Ellingsen, Mads"]
[Black "Mukhutdinov, Tigran"]
[Result "1/2-1/2"]
[ECO "D31"]
[WhiteElo "2410"]
[BlackElo "2256"]
[Annotator "NA RC"]
[PlyCount "77"]
[EventDate "2018.10.20"]
[EventType "swiss"]
[EventCountry "GRE"]
[SourceTitle "playchess.com"]
[Source "ChessBase"]
[SourceQuality "1"]
[TimeControl "40/5400+30:1800+30"]

1. d4 {[%emt 0:00:00]} d5 {[%emt 0:00:00]} 2. c4 {[%emt 0:00:00]} e6 {[%emt 0:00:00]} 3. Nc3 {[%emt 0:00:00]} c6 {[%emt 0:00:00]} 4. Nf3 {[%emt 0:00:00]} dxc4 {[%emt 0:00:00]} 5. a4 {[%emt 0:00:06]} Bb4 {[%emt 0:00:24]} 6. e3 {[%emt 0:00:09]} b5 {[%emt 0:00:24]} 7. Bd2 {[%emt 0:00:09]} a5 {[%emt 0:00:03]} 8. axb5 {[%emt 0:00:10]} Bxc3 {[%emt 0:00:04]} 9. Bxc3 {[%emt 0:00:10]} cxb5 {[%emt 0:00:04]} 10. b3 $1 {[%emt 0:00:10]} Bb7 {[%emt 0:00:14]} 11. bxc4 {[%emt 0:00:10]} b4 {[%emt 0:00:05]} 12. Bb2 {[%emt 0:00:08]} Nf6 {[%emt 0:00:21]} 13. c5 {[%emt 0:00:10] D31: Queen's Gambit Declined: Semi-Slav without ...Nf6 (+ Marshall Gambit and Noteboom) and Exchange Variation lines without ...Nf6} O-O {[%emt 0:01:55]} 14. Bb5 {[%emt 0:00:08]} Bc6 {[%emt 0:00:30]} (14... Ba6 15. Qa4 Qd5 16. Qxa5 Nc6 17. Qxa6 Rxa6 18. Rxa6 Qb3 19. Bxc6 Qxb2 20. O-O b3 {½-½ (28) Donchenko,A (2563)-Tomashevsky,E (2696) Minsk 2017}) 15. Ba4 {[%emt 0:00:11]} Qc7 {[%emt 0:01:20]} 16. O-O {[%emt 0:00:29] LiveBook: 5 Games} Bxa4 {[%emt 0:00:10]} 17. Qxa4 {[%emt 0:00:11]} Nc6 {[%emt 0:00:40]} 18. Nd2 {[%emt 0:00:53]} Nd5 {[%emt 0:00:13]} 19. Nc4 {[%emt 0:01:17]} f5 {[%emt 0:00:41] [#]} 20. Rfe1 $146 {[%emt 0:01:56]} ({Predecessor:} 20. f3 Qb7 {1-0 (59) Lohse,M (2507)-Nataf,I (2480) ICCF email 2015}) 20... Rf6 {[%emt 0:09:37]} 21. e4 {[%emt 0:01:53]} fxe4 {[%emt 0:06:30]} 22. Rxe4 {[%emt 0:00:11]} Raf8 {[%emt 0:02:19]} 23. f3 {[%emt 0:00:37]} Rf4 $11 {[%emt 0:14:53]} 24. Nd6 {[%emt 0:16:49]} Rxe4 {[%emt 0:07:26]} 25. fxe4 {[%emt 0:00:39]} Nf4 {[%emt 0:00:27]} 26. Kh1 {[%emt 0:21:05]} Nd3 {[%emt 0:15:58]} 27. Qb3 {[%emt 0:08:13]} Nxb2 {[%emt 0:03:05]} 28. Qxb2 {[%emt 0:00:11]} a4 {[%emt 0:05:34]} 29. d5 {[%emt 0:13:52]} exd5 {[%emt 0:11:31]} 30. exd5 {[%emt 0:00:10]} Na5 {[%emt 0:01:29]} 31. Qxb4 {[%emt 0:09:39]} Nb3 {[%emt 0:00:37]} 32. Rd1 {[%emt 0:05:36]} Qxc5 {[%emt 0:01:31]} 33. Qxa4 {[%emt 0:00:25]} Qxd5 {[%emt 0:02:17]} 34. Qc4 {[%emt 0:01:26]} Qxc4 {[%emt 0:00:23]} 35. Nxc4 {[%emt 0:00:08]} h6 {[%emt 0:00:25]} 36. Kg1 {[%emt 0:00:20]} Nc5 {[%emt 0:00:20]} 37. Ne5 {[%emt 0:00:48]} Kh7 {[%emt 0:00:28]} 38. Nd7 {[%emt 0:01:12]} Nxd7 {[%emt 0:00:05]} 39. Rxd7 {[%emt 0:00:07]} 1/2-1/2

[Event "WYCC 2018 O16"]
[Site "Halkidiki"]
[Date "2018.10.26"]
[Round "7"]
[White "Kaasen, Tor Fredrik"]
[Black "Bekturov, Tamerlan"]
[Result "1-0"]
[ECO "B53"]
[WhiteElo "2388"]
[BlackElo "2297"]
[Annotator "NA"]
[PlyCount "81"]
[EventDate "2018.10.20"]
[EventType "swiss"]
[EventCountry "GRE"]
[SourceTitle "playchess.com"]
[Source "ChessBase"]
[SourceQuality "1"]
[TimeControl "40/5400+30:1800+30"]

1. e4 {[%emt 0:00:00]} c5 {[%emt 0:00:00]} 2. Nf3 {[%emt 0:00:15]} d6 {[%emt 0:00:00]} 3. d4 {[%emt 0:01:14]} cxd4 {[%emt 0:00:01]} 4. Qxd4 {[%emt 0:00:23]} Nc6 {[%emt 0:01:15]} 5. Bb5 {[%emt 0:02:40]} Bd7 {[%emt 0:01:18]} 6. Qe3 {[%emt 0:01:06]} Nf6 {[%emt 0:04:23]} 7. O-O {[%emt 0:00:44]} g6 {[%emt 0:01:21]} 8. c4 {[%emt 0:00:59]} Bg7 {[%emt 0:00:28]} 9. Nc3 {[%emt 0:00:20]} O-O $11 {[%emt 0:02:40]} 10. h3 {[%emt 0:02:53]} a6 {[%emt 0:13:14]} 11. Bxc6 {[%emt 0:02:20]} Bxc6 {[%emt 0:00:40]} 12. Rd1 {[%emt 0:01:03]} Nd7 {[%emt 0:00:44]} 13. Nd4 {[%emt 0:01:38]} Rc8 {[%emt 0:02:02]} 14. b3 {[%emt 0:03:23]} b5 {[%emt 0:21:49]} 15. cxb5 {[%emt 0:03:32]} axb5 {[%emt 0:00:10]} 16. Bb2 {[%emt 0:00:17]} Nb8 {[%emt 0:09:01]} 17. a3 {[%emt 0:05:53]} Bd7 {[%emt 0:05:46]} 18. Qe2 {[%emt 0:07:26]} Qa5 {[%emt 0:03:10]} 19. b4 {[%emt 0:05:10]} Qa6 {[%emt 0:01:19]} 20. Rac1 {[%emt 0:09:27]} Qb7 {[%emt 0:04:55]} 21. Nd5 {[%emt 0:04:25]} Nc6 {[%emt 0:00:59]} 22. Nxb5 {[%emt 0:03:29]} Bxb2 {[%emt 0:14:34]} 23. Qxb2 {[%emt 0:00:08]} f5 {[%emt 0:00:33]} 24. Nbc3 {[%emt 0:03:04]} f4 {[%emt 0:01:11]} 25. Qd2 {[%emt 0:01:01]} Rf7 {[%emt 0:03:29]} 26. Nxf4 {[%emt 0:02:36]} Rcf8 {[%emt 0:00:39]} 27. Nce2 {[%emt 0:00:43]} Ne5 {[%emt 0:00:38]} 28. Qd5 {[%emt 0:11:38]} Bc6 {[%emt 0:01:16]} 29. Rxc6 {[%emt 0:12:09]} Qxc6 {[%emt 0:00:06]} 30. Qxc6 {[%emt 0:00:51]} Nxc6 {[%emt 0:00:06]} 31. Rc1 {[%emt 0:00:34]} Ne5 {[%emt 0:02:10]} 32. Ne6 {[%emt 0:01:49]} Rb8 {[%emt 0:02:15]} 33. Rc3 {[%emt 0:01:03]} Rf6 {[%emt 0:00:11]} 34. N2d4 {[%emt 0:00:14]} Kf7 {[%emt 0:01:48]} 35. Nc7 {[%emt 0:03:26]} e6 {[%emt 0:01:41]} 36. b5 {[%emt 0:01:27]} Ke7 {[%emt 0:00:23]} 37. a4 {[%emt 0:00:43]} Rff8 {[%emt 0:00:33]} 38. a5 {[%emt 0:03:18]} Rbc8 {[%emt 0:01:06]} 39. Ndxe6 {[%emt 0:00:47]} Rg8 {[%emt 0:00:42]} 40. b6 {[%emt 0:00:00]} Rb8 {[%emt 0:00:00]} 41. Nd4 {[%emt 0:04:45]} 1-0

[Event "WYCC 2018 O16"]
[Site "Halkidiki"]
[Date "2018.10.26"]
[Round "7"]
[White "Lianes Garcia, Marcos"]
[Black "Quirhuayo Chumbe, German Gonzalo"]
[Result "0-1"]
[ECO "E10"]
[WhiteElo "2376"]
[BlackElo "2220"]
[Annotator "NA"]
[PlyCount "50"]
[EventDate "2018.10.20"]
[EventType "swiss"]
[EventCountry "GRE"]
[SourceTitle "playchess.com"]
[Source "ChessBase"]
[SourceQuality "1"]
[TimeControl "40/5400+30:1800+30"]

1. d4 {[%emt 0:00:00]} Nf6 {[%emt 0:00:00]} 2. c4 {[%emt 0:00:42]} e6 {[%emt 0:00:00]} 3. Nf3 {[%emt 0:01:16]} c5 {[%emt 0:00:09]} 4. d5 {[%emt 0:01:03]} b5 {[%emt 0:00:14]} 5. dxe6 {[%emt 0:01:49]} fxe6 {[%emt 0:00:09]} 6. cxb5 {[%emt 0:01:08]} a6 {[%emt 0:00:16]} 7. Nc3 {[%emt 0:17:33]} axb5 {[%emt 0:07:29]} 8. Nxb5 {[%emt 0:00:28]} Qa5+ {[%emt 0:03:35]} 9. Nc3 {[%emt 0:00:29]} d5 {[%emt 0:00:11]} 10. e3 {[%emt 0:02:42]} Be7 {[%emt 0:02:02]} 11. Be2 {[%emt 0:03:16]} O-O {[%emt 0:01:00]} 12. O-O {[%emt 0:00:22]} Nc6 {[%emt 0:02:28]} 13. a4 {[%emt 0:07:57]} Rd8 {[%emt 0:02:09]} 14. Nb5 {[%emt 0:08:15]} e5 {[%emt 0:02:38]} 15. b4 {[%emt 0:31:43]} Qxb4 {[%emt 0:07:40]} 16. Bd2 {[%emt 0:00:50]} Qe4 {[%emt 0:00:48]} 17. Bc3 {[%emt 0:05:36]} Qf5 {[%emt 0:02:26]} 18. Nc7 {[%emt 0:04:00]} Ra7 {[%emt 0:01:24]} 19. e4 {[%emt 0:01:31]} Nxe4 {[%emt 0:04:10]} 20. Nb5 {[%emt 0:06:20]} Nxc3 {[%emt 0:01:42]} 21. Nxc3 {[%emt 0:00:01]} Be6 {[%emt 0:00:17]} 22. Bb5 {[%emt 0:01:34]} Nb4 {[%emt 0:00:56]} 23. Re1 {[%emt 0:00:25]} e4 {[%emt 0:00:12]} 24. Nd2 {[%emt 0:00:11]} Bf6 {[%emt 0:00:23]} 25. Ra3 {[%emt 0:00:02]} Bd4 {[%emt 0:00:11]} 0-1

[Event "WYCC 2018 O16"]
[Site "Halkidiki"]
[Date "2018.10.26"]
[Round "7"]
[White "Schitco, Ivan"]
[Black "Chukavin, Kirill"]
[Result "1-0"]
[ECO "A18"]
[WhiteElo "2376"]
[BlackElo "2274"]
[Annotator "NA"]
[PlyCount "117"]
[EventDate "2018.10.20"]
[EventType "swiss"]
[EventCountry "GRE"]
[SourceTitle "playchess.com"]
[Source "ChessBase"]
[SourceQuality "1"]
[TimeControl "40/5400+30:1800+30"]

1. c4 {[%emt 0:00:00]} e6 {[%emt 0:00:00]} 2. Nc3 {[%emt 0:00:00]} Nf6 {[%emt 0:00:00]} 3. e4 {[%emt 0:00:12]} d5 {[%emt 0:00:04]} 4. e5 {[%emt 0:00:22]} d4 {[%emt 0:00:07]} 5. exf6 {[%emt 0:00:05]} dxc3 {[%emt 0:00:05]} 6. bxc3 {[%emt 0:00:05]} Qxf6 {[%emt 0:00:20]} 7. d4 {[%emt 0:00:16]} e5 {[%emt 0:00:11]} 8. Nf3 {[%emt 0:00:27]} exd4 {[%emt 0:02:34]} 9. Bd3 {[%emt 0:21:28]} Bg4 {[%emt 0:24:23]} 10. Qa4+ {[%emt 0:11:37]} Qc6 {[%emt 0:27:21]} 11. Qc2 {[%emt 0:07:10]} Qe6+ {[%emt 0:10:50]} 12. Kd1 {[%emt 0:05:02]} Bxf3+ {[%emt 0:01:56]} 13. gxf3 {[%emt 0:00:02]} Qf6 {[%emt 0:01:03]} 14. Be4 {[%emt 0:22:23]} Nc6 {[%emt 0:05:44]} 15. Bxc6+ {[%emt 0:02:23]} Qxc6 {[%emt 0:02:07]} 16. Re1+ {[%emt 0:01:55]} Be7 {[%emt 0:02:06]} 17. Ba3 {[%emt 0:01:40]} O-O-O {[%emt 0:01:37]} 18. Bxe7 {[%emt 0:01:06]} d3 {[%emt 0:02:26]} 19. Qd2 {[%emt 0:01:24]} Qa4+ {[%emt 0:03:25]} 20. Kc1 Rhe8 21. Kb2 Rd7 22. Ba3 {[%emt 0:04:55]} Rxe1 {[%emt 0:06:38]} 23. Rxe1 b6 24. c5 bxc5 25. Qd1 Qc6 26. Re8+ Kb7 27. Qb3+ Qb6 28. Kc1 c4 29. Qxb6+ axb6 30. Bf8 g6 31. Re4 {[%emt 0:16:12]} b5 {[%emt 0:11:51]} 32. a4 {[%emt 0:01:10]} f5 {[%emt 0:00:37]} 33. Re5 {[%emt 0:00:50]} bxa4 {[%emt 0:00:02]} 34. Ba3 {[%emt 0:01:49]} Rd8 {[%emt 0:00:53]} 35. Rc5 {[%emt 0:02:20]} Re8 {[%emt 0:00:10]} 36. Rxc4 {[%emt 0:00:08]} Re2 {[%emt 0:00:35]} 37. Rxa4 {[%emt 0:01:15]} Rxf2 {[%emt 0:00:41]} 38. h4 {[%emt 0:01:07]} Rc2+ {[%emt 0:00:41]} 39. Kd1 {[%emt 0:00:06]} Rxc3 {[%emt 0:00:10]} 40. Kd2 {[%emt 0:00:00]} Rc2+ {[%emt 0:00:00]} 41. Kxd3 {[%emt 0:00:16]} Ra2 {[%emt 0:08:39]} 42. Rb4+ {[%emt 0:00:19]} Kc6 {[%emt 0:01:03]} 43. Bc1 {[%emt 0:00:21]} Kd5 {[%emt 0:01:39]} 44. Rd4+ {[%emt 0:01:17]} Ke6 {[%emt 0:02:08]} 45. Rc4 {[%emt 0:00:25]} Kd7 {[%emt 0:11:17]} 46. Bf4 {[%emt 0:00:59]} c6 {[%emt 0:01:34]} 47. Rd4+ {[%emt 0:01:39]} Ke7 {[%emt 0:00:08]} 48. Rb4 {[%emt 0:00:14]} Ra3+ {[%emt 0:00:56]} 49. Ke2 {[%emt 0:00:14]} Ra7 {[%emt 0:00:55]} 50. Bb8 {[%emt 0:00:43]} Rd7 {[%emt 0:02:42]} 51. Rb6 {[%emt 0:01:44]} c5 {[%emt 0:01:44]} 52. Rc6 {[%emt 0:00:18]} Rd4 {[%emt 0:02:32]} 53. Rc7+ {[%emt 0:00:36]} Kf6 {[%emt 0:00:46]} 54. Rxh7 {[%emt 0:00:13]} c4 {[%emt 0:00:07]} 55. Ba7 {[%emt 0:00:57]} Rd3 {[%emt 0:02:01]} 56. Rc7 {[%emt 0:00:14]} Ra3 {[%emt 0:00:06]} 57. Bd4+ {[%emt 0:01:03]} Ke6 {[%emt 0:00:02]} 58. Rxc4 {[%emt 0:00:15]} Kd5 {[%emt 0:00:36]} 59. Rb4 {[%emt 0:00:09]} 1-0